fUSD/lending_fUSD_20250226
["ID","MTS","AMOUNT","RATE_DAILY","PERIOD"]
[354506838,1740544233840,-3960.22,0.00045989,120]
[354506839,1740544233850,-77751.2917416,0.0004599,4]
[354506840,1740544233860,-160.36,0.0004599,2]
[354506841,1740544233871,-312.4006938,0.00045998,120]
[354506842,1740544233882,-500.0,0.00045998,120]
[354506843,1740544233892,-500.0,0.00045998,120]
[354506844,1740544233903,-500.0,0.00045998,120]
[354506845,1740544233913,-500.0,0.00045998,120]
[354506846,1740544233924,-500.0,0.00045998,120]
[354506847,1740544233935,-819.866,0.00045999,75]
[354506848,1740544233946,-624.27,0.00045999,120]
[354506849,1740544233958,-501.29108414,0.00045999,120]
[354506850,1740544233968,-500.0,0.00045999,120]
[354506851,1740544233979,-2074.26,0.00045999,120]
[354506852,1740544233989,-500.0,0.00045999,120]
[354506853,1740544234000,-609.85720596,0.00045999,120]
[354506854,1740544234010,-500.0,0.00045999,120]
[354506855,1740544234020,-1416.87,0.00045999,120]
[354506856,1740544234031,-1702.08,0.00045999,120]
[354506857,1740544234041,-500.0,0.00045999,120]
[354506858,1740544234051,-500.0,0.00045999,120]
[354506859,1740544234061,-3525.15,0.00045999,120]
[354506860,1740544234071,-2014.04,0.00045999,120]
[354506861,1740544234081,-3066.62,0.00045999,120]
[354506862,1740544234091,-505.3577103,0.00045999,120]
[354506863,1740544234101,-503.17285047,0.00045999,120]
[354506864,1740544234111,-1785.98,0.00045999,120]
[354506865,1740544234121,-506.40305887,0.00045999,120]
[354506866,1740544234131,-504.88,0.00045999,60]
[354506867,1740544234141,-503.48468062,0.00045999,120]
[354506868,1740544234151,-1772.55,0.00045999,120]
[354506869,1740544234161,-3264.77,0.00045999,120]
[354506870,1740544234171,-500.0,0.00045999,120]
[354506871,1740544234181,-500.0,0.00045999,120]
[354506872,1740544234190,-511.86250371,0.00045999,120]
[354506873,1740544234200,-500.0,0.00045999,120]
[354506874,1740544234211,-505.01971291,0.00045999,120]
[354506875,1740544234221,-7083.78,0.00045999,120]
[354506876,1740544234231,-502.8600392,0.00045999,120]
[354506877,1740544234242,-1354.47,0.00045999,120]
[354506878,1740544234252,-507.63577202,0.00045999,120]
[354506879,1740544234263,-502.12907556,0.00045999,120]
[354506880,1740544234273,-5735.65,0.00045999,120]
[354506881,1740544234611,-512.28720485,0.00045999,120]
[354506882,1740544234622,-2980.74,0.00045999,120]
[354506883,1740544234633,-1269.89,0.00045999,120]
[354506884,1740544234642,-500.0,0.00045999,120]
[354506885,1740544234652,-2216.69,0.00045999,120]
[354506886,1740544234663,-502.56140255,0.00045999,120]
[354506887,1740544234672,-500.0,0.00045999,120]
[354506888,1740544234681,-632.95,0.00045999,120]
[354506889,1740544234690,-2266.63,0.00045999,120]
[354506890,1740544234699,-500.0,0.00045999,120]
[354506891,1740544234710,-1462.59,0.00045999,120]
[354506892,1740544234719,-1873.95,0.00045999,7]
[354506893,1740544234728,-1045.32,0.00045999,120]
[354506894,1740544234738,-526.05535056,0.00045999,120]
[354506895,1740544234748,-2681.9,0.00045999,120]
[354506896,1740544234758,-3264.41,0.00045999,120]
[354506897,1740544234768,-504.02434674,0.00045999,120]
[354506898,1740544234777,-4146.5,0.00045999,120]
[354506899,1740544234787,-2715.26,0.00045999,120]
[354506900,1740544234796,-500.0,0.00045999,120]
[354506901,1740544234806,-2000.0,0.00045999,120]
[354506902,1740544234815,-162.55022474,0.00045999,120]
[354506903,1740544234825,-2955.22,0.00045999,120]
[354506904,1740544234834,-1932.46,0.00045999,120]
[354506905,1740544234844,-500.0,0.00045999,120]
[354506906,1740544234853,-500.0,0.00045999,120]
[354506907,1740544234863,-2464.5,0.00045999,120]
[354506908,1740544234872,-1114.68,0.00045999,120]
[354506909,1740544234882,-500.0,0.00045999,120]
[354506910,1740544234891,-2663.18,0.00045999,120]
[354506911,1740544234901,-538.55,0.00045999,120]
[354506912,1740544234911,-506.37697771,0.00045999,120]
[354506913,1740544234920,-2495.95,0.00045999,120]
[354506914,1740544234930,-503.19410833,0.00045999,120]
[354506915,1740544234939,-1614.55,0.00045999,120]
[354506916,1740544234949,-578.77833172,0.00045999,120]
[354506917,1740544234960,-331.19822715,0.00045999,120]
[354506918,1740544234969,-510.90432871,0.00045999,120]
[354506919,1740544234978,-2250.88,0.00045999,120]
[354506920,1740544234988,-504.26183827,0.00045999,120]
[354506921,1740544234998,-1946.68,0.00045999,120]
[354506922,1740544235007,-1946.68,0.00045999,120]
[354506923,1740544235017,-1946.68,0.00045999,120]
[354506924,1740544235027,-957.07,0.00045999,120]
[354506925,1740544235036,-3905.96,0.00045999,2]
[354506926,1740544235046,-1946.68,0.00045999,120]
[354506927,1740544235055,-957.07,0.00045999,120]
[354506928,1740544235065,-1946.68,0.00045999,120]
[354506929,1740544235074,-957.07,0.00045999,120]
[354506930,1740544235083,-957.07,0.00045999,120]
[354506931,1740544235092,-957.07,0.00045999,120]
[354506932,1740544235102,-501.88820992,0.00045999,120]
[354506933,1740544235111,-1377.32,0.00045999,120]
[354506934,1740544235121,-503.49795967,0.00045999,120]
[354506935,1740544235131,-3388.69,0.00045999,120]
[354506936,1740544235140,-4984.07,0.00045999,120]
[354506937,1740544235149,-598.71102614,0.00045999,120]
[354506938,1740544235159,-5972.31,0.00045999,120]
[354506939,1740544235168,-508.97155496,0.00045999,120]
[354506940,1740544235177,-500.0,0.00045999,120]
[354506941,1740544235187,-1349.17,0.00045999,120]
[354506942,1740544235197,-500.80149418,0.00045999,30]
[354506943,1740544235207,-6955.7,0.00045999,120]
[354506944,1740544235217,-3525.56,0.00045999,120]
[354506945,1740544235226,-620.88,0.00045999,120]
[354506946,1740544235236,-502.23047947,0.00045999,120]
[354506947,1740544235245,-500.68892911,0.00045999,120]
[354506948,1740544235255,-513.88753083,0.00045999,120]
[354506949,1740544235265,-500.0,0.00045999,120]
[354506950,1740544235275,-2064.88,0.00045999,120]
[354506951,1740544235285,-4517.91,0.00045999,120]
[354506952,1740544235294,-509.89442339,0.00045999,120]
[354506953,1740544235304,-4032.14,0.00045999,120]
[354506954,1740544235314,-1063.28,0.00045999,120]
[354506955,1740544235324,-500.93324314,0.00045999,120]
[354506956,1740544235334,-4474.4,0.00045999,120]
[354506957,1740544235343,-530.51740972,0.00045999,120]
[354506958,1740544235353,-500.0,0.00045999,120]
[354506959,1740544235363,-223.52950926,0.00045999,120]
[354506960,1740544235372,-508.79003974,0.00045999,120]
[354506961,1740544235382,-15027.82,0.00045999,120]
[354506962,1740544235392,-5381.42,0.00045999,120]
[354506963,1740544235402,-501.48316204,0.00045999,120]
[354506964,1740544235412,-1966.89,0.00045999,120]
[354506965,1740544235423,-502.76821927,0.00045999,120]
[354506966,1740544235432,-230.36763631,0.00045999,120]
[354506967,1740544235442,-8282.84,0.00045999,120]
[354506968,1740544235452,-610.71561466,0.00045999,120]
[354506969,1740544235463,-3906.09,0.00045999,120]
[354506970,1740544235477,-503.28659439,0.00045999,120]
[354506971,1740544235487,-6041.94,0.00045999,120]
[354506972,1740544235501,-500.0,0.00045999,120]
[354506973,1740544235510,-5446.55,0.00045999,120]
[354506974,1740544235520,-502.38817238,0.00045999,120]
[354506975,1740544235531,-4445.06,0.00045999,120]
[354506976,1740544235540,-340.6879502,0.00045999,120]
[354506977,1740544235549,-375.02876084,0.00045999,120]
[354506978,1740544235559,-5587.47,0.00045999,120]
[354506979,1740544235569,-6847.56,0.00045999,120]
[354506980,1740544235579,-502.2388981,0.00045999,120]
[354506981,1740544235588,-8601.69,0.00045999,120]
[354506982,1740544235598,-3060.29,0.00045999,120]
[354506983,1740544235607,-500.0,0.00045999,120]
[354506984,1740544235617,-501.36087698,0.00045999,120]
[354506985,1740544235626,-7735.34,0.00045999,120]
[354506986,1740544235636,-501.82452887,0.00045999,120]
[354506987,1740544235645,-807.3313813,0.00045999,120]
[354506988,1740544236107,-400.86620647,0.00045999,120]
[354506989,1740544236127,-1826.57241223,0.00045999,120]
[354506990,1740544236137,-3016.29,0.00045999,120]
[354506991,1740544236145,-1537.17,0.00045999,120]
[354506992,1740544236154,-1425.52,0.00045999,7]
[354506993,1740544236164,-500.66186923,0.00045999,120]
[354506994,1740544236174,-555.17493766,0.00045999,120]
[354506995,1740544236184,-152.335266,0.00045999,14]
[354506996,1740544236193,-3143.48,0.00045999,120]
[354506997,1740544236203,-505.04864272,0.00045999,120]
[354506998,1740544236214,-8993.17169555,0.00045999,100]
[354506999,1740544236225,-517.59043303,0.00045999,100]
[354507000,1740544236237,-1082.14909368,0.00045999,100]
[354507001,1740544236326,-151.08877774,0.00045999,100]
[354507002,1740544236336,-501.13847679,0.00045999,120]
[354507003,1740544236346,-500.47595429,0.00045999,120]
[354507004,1740544236355,-500.0,0.00045999,120]
[354507005,1740544236365,-354.54460621,0.00045999,120]
[354507006,1740544238274,-721.34,0.00045413,120]
[354507007,1740544238285,-721.34,0.00045687,120]
[354507008,1740544238294,-721.34,0.00045961,120]
[354507009,1740544238304,-500.0,0.00045989,120]
[354507010,1740544238314,-500.0,0.00045989,120]
[354507011,1740544238324,-500.0,0.00045998,120]
[354507012,1740544238334,-500.0,0.00045998,120]
[354507013,1740544238343,-429.92992027,0.00045998,120]
[354507014,1740544238355,-70.07007973,0.00045998,120]
[354507015,1740544238365,-275.77813654,0.00045999,120]
[354507016,1740544238376,-4504.32725725,0.00045999,120]
[354507017,1740544238385,-500.0,0.00045999,120]
[354507018,1740544238395,-4934.16,0.00045999,120]
[354507019,1740544238404,-523.88623845,0.00045999,120]
[354507020,1740544238414,-285.85778757,0.00045999,120]
[354507021,1740544238427,-771.68221243,0.00045999,120]
[354507022,1740544238436,-98.31775241,0.00045999,120]
[354507023,1740544238448,-401.68224759,0.00045999,120]
[354507024,1740544238459,-506.88041066,0.00045999,120]
[354507025,1740544238471,-500.0,0.00045999,7]
[354507026,1740544238480,-888.38,0.00045999,120]
[354507027,1740544238490,-2580.99512636,0.00045999,120]
[354507028,1740544238509,-274.02890165,0.00045999,120]
[354507030,1740544238521,-424.77212932,0.00045999,120]
[354507031,1740544238532,-168.88384267,0.00045999,120]
[354507032,1740544238543,-501.14535231,0.00045999,120]
[354507033,1740544238552,-6377.91,0.00045999,120]
[354507034,1740544238561,-151.0,0.00045999,14]
[354507035,1740544238570,-5710.22,0.00045999,120]
[354507037,1740544238581,-506.24974379,0.00045999,120]
[354507038,1740544238590,-4399.59106123,0.00045999,120]
[354507039,1740544238601,-1030.0,0.00045999,120]
[354507040,1740544238620,-614.60893877,0.00045999,120]
[354507041,1740544238629,-2232.73,0.00045999,120]
[354507042,1740544238640,-500.0,0.00045999,120]
[354507043,1740544238650,-4932.47,0.00045999,120]
[354507044,1740544238659,-2158.2,0.00045999,120]
[354507045,1740544238669,-5127.18,0.00045999,120]
[354507046,1740544238678,-500.63420393,0.00045999,120]
[354507047,1740544238688,-266.156243,0.00045999,14]
[354507048,1740544238697,-502.39165517,0.00045999,120]
[354507049,1740544238707,-2541.1,0.00045999,120]
[354507050,1740544238716,-266.156243,0.00045999,14]
[354507051,1740544238725,-500.0,0.00045999,120]
[354507052,1740544238735,-3000.0,0.00045999,120]
[354507053,1740544238745,-500.0,0.00045999,120]
[354507054,1740544238755,-500.0,0.00045999,120]
[354507055,1740544238765,-3716.96,0.00045999,120]
[354507056,1740544238775,-2172.23,0.00045999,120]
[354507057,1740544238785,-614.23544486,0.00045999,120]
[354507058,1740544238795,-500.0,0.00045999,120]
[354507059,1740544238805,-500.0,0.00045999,120]
[354507060,1740544238815,-5724.77,0.00045999,120]
[354507061,1740544238826,-1283.46,0.00045999,120]
[354507062,1740544238835,-501.93513888,0.00045999,120]
[354507063,1740544238845,-500.0,0.00045999,120]
[354507064,1740544238855,-500.64640853,0.00045999,120]
[354507065,1740544238865,-249160.19550901,0.00045999,50]
[354507066,1740544238877,-8734.37263935,0.00045999,50]
[354507067,1740544238889,-6790.99900856,0.00045999,50]
[354507068,1740544238905,-5768.91366474,0.00045999,50]
[354507069,1740544239002,-905.13151764,0.00045999,50]
[354507072,1740544240319,-260.51,0.00045413,120]
[354507073,1740544240332,-2038.6,0.00045413,120]
[354507074,1740544240345,-383.46,0.00045413,120]
[354507075,1740544240355,-500.0,0.00045413,120]
[354507076,1740544240366,-2682.57,0.00045687,120]
[354507077,1740544240377,-10.79946241,0.00045961,120]
[354507078,1740544240390,-368.47542595,0.00045961,120]
[354507079,1740544240543,-2303.29511164,0.00045961,120]
[354507080,1740544240554,-2938.84,0.00045989,120]
[354507081,1740544240564,-500.0,0.00045999,120]
[354507082,1740544240576,-13037.95538543,0.00045999,50]
[354507083,1740544240655,-4775.55,0.00045999,50]
[354507084,1740544240668,-94476.30219691,0.00045999,50]
[354507085,1740544240679,-653.75135403,0.00046,71]
[354507086,1740544240690,-124732.20655363,0.00046,120]
[354507087,1740544240703,-424.30919668,0.00046,120]
[354507089,1740544240719,-1806.87594557,0.00046,120]
[354507110,1740544243298,-1005.26011322,0.00045413,120]
[354507112,1740544243313,-990.81988678,0.00045413,120]
[354507113,1740544243324,-1996.08,0.00045687,120]
[354507114,1740544243335,-1996.08,0.00045961,120]
[354507115,1740544243352,-301.77986258,0.00045979,2]
[354507116,1740544243374,-2020.24025064,0.00045999,120]
[354507117,1740544243512,-187.13974936,0.00045999,120]
[354507118,1740544243526,-85.73494648,0.00045999,120]
[354507119,1740544243543,-414.26505352,0.00045999,120]
[354507120,1740544243556,-710.73490148,0.00046,120]
[354507121,1740544243579,-952.20201894,0.00046,120]
[354507122,1740544243594,-522.8,0.00046,120]
[354507123,1740544243608,-675.424955,0.00046,120]
[354507124,1740544243624,-647.99736007,0.00046,120]
[354507125,1740544243642,-500.0,0.00046,120]
[354507126,1740544243659,-59552.14163133,0.00046,120]
[354507127,1740544243674,-4462.1812284,0.00046,120]
[354507128,1740544243689,-22873.4975683,0.00046,120]
[354507129,1740544243797,-274.60466996,0.00046,120]
[354507130,1740544243812,-332.99452145,0.00046,120]
[354507131,1740544243848,-640.89500003,0.00046,120]
[354507132,1740544243862,-346.98461568,0.00046,120]
[354507133,1740544243874,-3011.29539032,0.00046,120]
[354507134,1740544243887,-261.98000005,0.00046,120]
[354507135,1740544243904,-688.7483796,0.00046,120]
[354507136,1740544243919,-3711.5868532,0.00046,120]
[354507409,1740544247332,-947.1920184,0.00046,120]
[354507410,1740544247344,-158432.25192214,0.00046,120]
[354507411,1740544247359,-1443.64072596,0.00046,120]
[354507412,1740544247371,-337.75768644,0.00046,120]
[354507464,1740544248014,-500.0,0.00045413,120]
[354507466,1740544248024,-177.12,0.00045687,120]
[354507468,1740544248034,-500.0,0.00045989,7]
[354507470,1740544248044,-500.0,0.00045999,120]
[354507472,1740544248054,-2284.37,0.00046,120]
[354507475,1740544248070,-19808.08834,0.00046,120]
[354507477,1740544248081,-303.58411364,0.00046,120]
[354507479,1740544248092,-696.054795,0.00046,120]
[354507482,1740544248113,-355.88,0.00046,120]
[354507490,1740544248179,-424.30919668,0.00046,120]
[354507492,1740544248190,-2655.68939049,0.00046,120]
[354507494,1740544248202,-519.53762885,0.00046,120]
[354507497,1740544248214,-2711.13608082,0.00046,120]
[354511970,1740545431542,-250.0,0.00021,2]
[354511971,1740545431551,-200.0,0.00021918,2]
[354511972,1740545431560,-200.0,0.00021918,2]
[354511973,1740545431570,-200.0,0.00021918,2]
[354511974,1740545431579,-300.0,0.00023,2]
[354511975,1740545431590,-350.0,0.00025,2]
[354511976,1740545431599,-163.18672005,0.00026749,2]
[354511977,1740545431608,-163.84,0.00026849,2]
[354511978,1740545431618,-2680.0,0.000293,3]
[354511979,1740545431627,-150.0,0.00037983,30]
[354511980,1740545431636,-438.97327995,0.00037983,30]
[354511981,1740545431868,-568.80100726,0.00037983,30]
[354511982,1740545431878,-442.9066784,0.00038,120]
[354511983,1740545431891,-4520.71,0.00038678,30]
[354511984,1740545431900,-450.0,0.00042,120]
[354511985,1740545431909,-300.0,0.00043135,4]
[354511986,1740545431918,-382.32,0.00043136,2]
[354511987,1740545431929,-1575.188,0.00043136,2]
[354511989,1740545431939,-758.024,0.00043136,2]
[354511991,1740545431947,-151.482,0.00043136,2]
[354511993,1740545431957,-550.29,0.00043136,2]
[354511995,1740545431968,-912.618,0.00043136,2]
[354511997,1740545431977,-1424.0,0.00043136,2]
[354511999,1740545431987,-540.435,0.00043136,2]
[354512000,1740545431996,-896.0,0.00043136,2]
[354512002,1740545432006,-1269.932,0.00043136,2]
[354512003,1740545432016,-4033.0,0.00043136,2]
[354512004,1740545432025,-150.0,0.00043136,2]
[354512005,1740545432034,-150.0,0.00043136,2]
[354512006,1740545432044,-150.0,0.00043136,2]
[354512008,1740545432054,-3919.0,0.00043136,2]
[354512010,1740545432064,-1000.0,0.00043328,2]
[354512012,1740545432074,-460.04,0.00043381,2]
[354512014,1740545432083,-150.0,0.00043444,2]
[354512016,1740545432092,-200.0,0.0004347,2]
[354512018,1740545432102,-150.0,0.00043564,2]
[354512020,1740545432111,-591.57,0.00043569,120]
[354512022,1740545432120,-680.87,0.00043638,2]
[354512024,1740545432130,-150.0,0.00043701,2]
[354512026,1740545432141,-150.0,0.00043744,2]
[354512028,1740545432150,-200.0,0.00043788,2]
[354512030,1740545432159,-300.0,0.00043846,2]
[354512032,1740545432169,-150.0,0.00043866,2]
[354512034,1740545432179,-150.83,0.00043957,2]
[354512036,1740545432188,-680.87,0.00043983,2]
[354512039,1740545432197,-500.0,0.00044,2]
[354512041,1740545432207,-9457.88,0.00044001,2]
[354512042,1740545432215,-171.380772,0.000441,90]
[354512044,1740545432225,-150.0,0.00044135,2]
[354512046,1740545432234,-150.0,0.00044169,2]
[354512048,1740545432243,-730.44259816,0.00044231,2]
[354512051,1740545432253,-8456.95,0.00044241,2]
[354512053,1740545432262,-150.0,0.00044265,2]
[354512055,1740545432271,-150.0,0.00044313,2]
[354512056,1740545432281,-680.87,0.00044327,2]
[354512058,1740545432290,-150.0,0.00044522,2]
[354512060,1740545432299,-200.0,0.0004455,30]
[354512062,1740545432308,-680.87,0.00044672,2]
[354512063,1740545432318,-171.380772,0.00044877,2]
[354512064,1740545432328,-800.0,0.000449,16]
[354512065,1740545432337,-150.0,0.00044984,2]
[354512066,1740545432347,-506.78,0.00045,2]
[354512067,1740545432356,-680.87,0.00045016,2]
[354512068,1740545432366,-250.0,0.00045067,2]
[354512069,1740545432378,-1645.958,0.00045076,72]
[354512070,1740545432388,-1060.0,0.00045076,30]
[354512071,1740545432399,-175.309,0.00045076,72]
[354512072,1740545432412,-171.93,0.00045091,2]
[354512073,1740545432422,-150.0,0.00045131,2]
[354512074,1740545432432,-150.0,0.00045158,2]
[354512075,1740545432441,-150.0,0.00045203,2]
[354512076,1740545432450,-150.0,0.00045205,2]
[354512077,1740545432460,-163.84,0.00045205,2]
[354512078,1740545432469,-150.0,0.00045303,2]
[354512079,1740545432478,-372.04482334,0.00045303,15]
[354512080,1740545432487,-2853.07599589,0.00045312,15]
[354512081,1740545432496,-626.54076769,0.00045313,20]
[354512082,1740545432506,-680.87,0.00045361,2]
[354512083,1740545432515,-150.0,0.00045379,2]
[354512084,1740545432524,-372.04482331,0.00045395,15]
[354512085,1740545432535,-3941.99688911,0.000454,120]
[354512086,1740545432544,-3941.81,0.000454,120]
[354512087,1740545432556,-3941.81,0.000454,120]
[354512088,1740545432572,-3941.81,0.000454,120]
[354512089,1740545432584,-3941.81,0.000454,120]
[354512090,1740545432603,-3941.81,0.000454,120]
[354512091,1740545432617,-3941.81,0.000454,120]
[354512092,1740545432630,-3941.81,0.000454,120]
[354512093,1740545432641,-3941.81,0.000454,120]
[354512094,1740545432651,-3941.81,0.000454,120]
[354512095,1740545432661,-3941.81,0.000454,120]
[354512096,1740545432672,-3941.81,0.000454,120]
[354512097,1740545432682,-3941.81,0.000454,120]
[354512098,1740545432693,-3941.81,0.000454,120]
[354512099,1740545432703,-3941.81,0.000454,120]
[354512100,1740545432713,-138841.592396,0.00045402,4]
[354512101,1740545432723,-2853.07599585,0.00045403,15]
[354512102,1740545432734,-986.97,0.0004541,120]
[354512103,1740545432995,-11207.18,0.0004541,120]
[354512104,1740545433007,-4459.21,0.0004541,120]
[354512105,1740545433016,-6437.93,0.0004541,120]
[354512106,1740545433026,-4352.17,0.0004541,120]
[354512107,1740545433036,-4620.47,0.0004541,120]
[354512108,1740545433046,-3277.66,0.0004541,120]
[354512109,1740545433056,-7637.06,0.0004541,120]
[354512110,1740545433066,-6834.67,0.0004541,120]
[354512111,1740545433076,-654.65,0.0004541,120]
[354512112,1740545433086,-1057.71,0.0004541,120]
[354512113,1740545433095,-6165.64,0.0004541,120]
[354512114,1740545433105,-3205.88,0.0004541,120]
[354512115,1740545433114,-3174.28,0.0004541,120]
[354512116,1740545433124,-664.0,0.0004541,120]
[354512117,1740545433133,-6206.61,0.0004541,120]
[354512118,1740545433143,-1807.45,0.0004541,120]
[354512119,1740545433153,-5994.11,0.0004541,120]
[354512120,1740545433163,-4388.53,0.0004541,120]
[354512121,1740545433172,-3481.45,0.0004541,120]
[354512122,1740545433181,-2775.37,0.0004541,120]
[354512123,1740545433191,-3650.14,0.0004541,120]
[354512124,1740545433200,-500.0,0.0004541,120]
[354512125,1740545433210,-5935.86,0.0004541,120]
[354512126,1740545433219,-7132.6,0.0004541,120]
[354512127,1740545433229,-4390.93,0.0004541,120]
[354512128,1740545433239,-4072.81,0.0004541,120]
[354512129,1740545433248,-2802.96,0.0004541,120]
[354512130,1740545433258,-1701.01,0.0004541,120]
[354512131,1740545433267,-6388.69,0.0004541,120]
[354512132,1740545433276,-1525.54,0.0004541,120]
[354512133,1740545433285,-3535.94,0.0004541,120]
[354512134,1740545433295,-500.0,0.00045411,120]
[354512135,1740545433304,-500.0,0.00045411,120]
[354512136,1740545433314,-500.0,0.00045411,120]
[354512137,1740545433324,-500.0,0.00045411,120]
[354512138,1740545433333,-813.77,0.00045411,120]
[354512139,1740545433343,-500.0,0.00045411,120]
[354512140,1740545433352,-500.0,0.00045411,120]
[354512141,1740545433362,-500.0,0.00045411,120]
[354512142,1740545433371,-500.0,0.00045411,120]
[354512143,1740545433381,-1330.9,0.00045411,120]
[354512144,1740545433391,-500.0,0.00045411,120]
[354512145,1740545433400,-1512.04,0.00045411,120]
[354512146,1740545433410,-500.0,0.00045411,120]
[354512147,1740545433419,-517.81,0.00045411,120]
[354512148,1740545433429,-1109.57,0.00045411,120]
[354512149,1740545433437,-582.18,0.00045411,120]
[354512150,1740545433447,-500.0,0.00045411,120]
[354512151,1740545433456,-500.0,0.00045411,120]
[354512152,1740545433465,-500.0,0.00045411,120]
[354512153,1740545433475,-500.0,0.00045411,120]
[354512154,1740545433484,-500.0,0.00045411,120]
[354512155,1740545433493,-501.38284173,0.00045411,120]
[354512156,1740545433503,-943.79,0.00045411,120]
[354512157,1740545433512,-829.57,0.00045411,120]
[354512158,1740545433522,-1541.29,0.00045411,120]
[354512159,1740545433531,-500.0,0.00045411,120]
[354512160,1740545433541,-840.37,0.00045411,120]
[354512161,1740545433550,-500.0,0.00045411,120]
[354512162,1740545433560,-503.65545372,0.00045411,120]
[354512163,1740545433570,-500.0,0.00045411,120]
[354512164,1740545433580,-1131.29,0.00045411,120]
[354512165,1740545433589,-500.0,0.00045411,120]
[354512166,1740545433599,-500.0,0.00045411,120]
[354512167,1740545433608,-1018.26,0.00045411,120]
[354512168,1740545433618,-500.0,0.00045411,120]
[354512169,1740545433627,-725.4,0.00045411,120]
[354512170,1740545433637,-500.0,0.00045411,120]
[354512171,1740545433646,-500.0,0.00045411,120]
[354512172,1740545433656,-500.0,0.00045411,120]
[354512173,1740545433665,-500.0,0.00045411,120]
[354512174,1740545433675,-500.0,0.00045411,120]
[354512175,1740545433684,-500.0,0.00045411,120]
[354512176,1740545433693,-1522.32,0.00045411,120]
[354512177,1740545433704,-565.75,0.00045411,120]
[354512178,1740545433713,-500.0,0.00045411,120]
[354512179,1740545433723,-500.0,0.00045411,120]
[354512180,1740545433732,-869.99,0.00045411,120]
[354512181,1740545433742,-893.43,0.00045411,120]
[354512182,1740545433751,-597.04,0.00045411,120]
[354512183,1740545433761,-366.98820498,0.00045411,120]
[354512184,1740545433770,-500.0,0.00045411,120]
[354512185,1740545433780,-1615.94,0.00045411,120]
[354512186,1740545433789,-500.0,0.00045411,120]
[354512187,1740545433798,-500.0,0.00045411,120]
[354512188,1740545433807,-500.0,0.00045411,120]
[354512189,1740545433818,-506.60370211,0.00045411,120]
[354512190,1740545433828,-965.08,0.00045411,120]
[354512191,1740545433838,-636.78,0.00045411,120]
[354512192,1740545433847,-501.74356961,0.00045411,120]
[354512193,1740545433857,-502.95165117,0.00045411,120]
[354512194,1740545433867,-500.0,0.00045411,120]
[354512195,1740545433876,-500.0,0.00045411,120]
[354512196,1740545433887,-500.0,0.00045411,120]
[354512197,1740545433897,-500.0,0.00045411,120]
[354512198,1740545433907,-500.0,0.00045411,120]
[354512199,1740545433916,-500.0,0.00045411,120]
[354512200,1740545433926,-614.17,0.00045411,120]
[354512201,1740545433937,-500.0,0.00045411,120]
[354512202,1740545433947,-500.0,0.00045411,90]
[354512203,1740545433957,-500.0,0.00045411,90]
[354512204,1740545433968,-929.1,0.00045411,120]
[354512205,1740545433978,-885.79,0.00045411,120]
[354512206,1740545433988,-1311.98,0.00045411,120]
[354512207,1740545433997,-938.78,0.00045411,120]
[354512208,1740545434007,-504.34625767,0.00045411,120]
[354512209,1740545434016,-500.0,0.00045411,120]
[354512210,1740545434026,-819.68,0.00045411,120]
[354512211,1740545434036,-506.24068116,0.00045411,120]
[354512212,1740545434045,-1697.72,0.00045411,120]
[354512213,1740545434055,-500.0,0.00045411,120]
[354512214,1740545434065,-502.84619971,0.00045411,120]